[Event "XIX Sants Open 2017"]
[Site "Cotxeres de Sants"]
[Date "2017.08.23"]
[Round "6"]
[White "Sarto Ramos, Angel"]
[Black "Garcia Ruiz, Adrian"]
[Result "*"]
[WhiteElo "1932"]
[BlackElo "1940"]
[Annotator "NA RC"]
[PlyCount "29"]
[EventDate "2017.??.??"]
[EventType "swiss"]
[EventCountry "ESP"]
[SourceTitle "playchess.com"]
[Source "ChessBase"]
[SourceQuality "1"]
[TimeControl "40/5400+30:1800+30"]

{[%evp 14,24,11,10,25,26,32767,32767,24,22,32767,45,36]} 1. b3 {[%emt 0:00:00]} d5 {[%emt 0:01:05]} 2. Nf3 {[%emt 0:00:00]} Nf6 {[%emt 0:00:30]} 3. Bb2 {[%emt 0:00:00]} e6 {[%emt 0:01:58]} 4. e3 {[%emt 0:00:07]} Be7 {[%emt 0:00:57]} 5. c4 {[%emt 0:01:35]} O-O {[%emt 0:00:55]} 6. cxd5 {[%emt 0:02:13]} exd5 {[%emt 0:00:49]} 7. Be2 {[%emt 0:00:17]} c5 {[%emt 0:07:47]} 8. O-O {[%emt 0:06:20]} Nc6 {[%emt 0:00:40] LiveBook: 35 Games} 9. d4 {[%emt 0:00:40]} Bg4 {[%emt 0:04:40]} 10. Nbd2 {[%emt 0:09:44]} Re8 {[%emt 0:05:23]} 11. Rc1 {[%emt 0:08:06]} cxd4 {[%emt 0:13:31]} 12. Nxd4 {[%emt 0:05:50]} Bd7 $14 {[%emt 0:05:37]} 13. N2f3 {[%emt 0:03:19]} Nxd4 {[%emt 0:12:56]} 14. Nxd4 {[%emt 0:00:28]} a6 {[%emt 0:04:26]} 15. Bf3 {[%emt 0:13:09]} *

[Event "XIX Sants Open 2017"]
[Site "Cotxeres de Sants"]
[Date "2017.08.23"]
[Round "6"]
[White "Llombart Baiges, Jaime"]
[Black "Segura Ruiz, Carlos"]
[Result "*"]
[WhiteElo "1622"]
[BlackElo "1414"]
[Annotator "NA RC"]
[PlyCount "36"]
[EventDate "2017.??.??"]
[EventType "swiss"]
[EventCountry "ESP"]
[SourceTitle "playchess.com"]
[Source "ChessBase"]
[SourceQuality "1"]
[TimeControl "40/5400+30:1800+30"]

1. e4 c5 2. d4 cxd4 3. c3 d3 4. Bxd3 e6 5. Nf3 Be7 6. O-O a6 7. Qc2 d6 8. Be3 Nf6 9. Nbd2 Nbd7 10. Nd4 O-O 11. N2f3 Nc5 12. e5 dxe5 13. Nxe5 Nxd3 14. Nxd3 Qc7 15. Nf3 b5 16. Rad1 Bb7 17. Bf4 Qc4 18. b3 Qc8 *

[Event "XIX Sants Open 2017"]
[Site "Cotxeres de Sants"]
[Date "2017.08.23"]
[Round "6"]
[White "Llombart Baiges, Jaime"]
[Black "Segura Ruiz, Carlos"]
[Result "0-1"]
[ECO "B18"]
[WhiteElo "1622"]
[BlackElo "1414"]
[Annotator "NA RC"]
[PlyCount "85"]
[EventDate "2017.??.??"]
[EventType "swiss"]
[EventCountry "ESP"]
[SourceTitle "playchess.com"]
[Source "ChessBase"]
[SourceQuality "1"]
[TimeControl "40/5400+30:1800+30"]

1. e4 {[%emt 0:00:00]} c6 {[%emt 0:00:08]} 2. d4 {[%emt 0:00:09]} d5 {[%emt 0:00:10]} 3. Nc3 {[%emt 0:00:51]} dxe4 {[%emt 0:00:19]} 4. Nxe4 {[%emt 0:00:10]} Bf5 {[%emt 0:00:15]} 5. Bd3 {[%emt 0:00:28]} Qxd4 {[%emt 0:01:23]} 6. Qf3 {[%emt 0:00:51]} Bxe4 {[%emt 0:06:27]} 7. Bxe4 {[%emt 0:00:24]} Nf6 {[%emt 0:00:44]} 8. Bd3 {[%emt 0:00:26]} e6 {[%emt 0:01:39]} 9. Ne2 {[%emt 0:00:21]} Qg4 {[%emt 0:14:29]} 10. Qxg4 {[%emt 0:00:14]} Nxg4 {[%emt 0:00:10]} 11. Bf4 {[%emt 0:00:25]} Bc5 {[%emt 0:07:30]} 12. Bg3 {[%emt 0:00:39]} Nd7 {[%emt 0:01:42]} 13. h3 {[%emt 0:00:50]} Nge5 {[%emt 0:03:49]} 14. O-O-O {[%emt 0:00:13]} O-O {[%emt 0:08:53]} 15. f4 {[%emt 0:00:37]} Nxd3+ {[%emt 0:02:19]} 16. Rxd3 {[%emt 0:00:08]} Nf6 {[%emt 0:05:17]} 17. Rhd1 {[%emt 0:00:18]} Bb6 {[%emt 0:06:34]} 18. Bh4 {[%emt 0:00:37]} Nd5 {[%emt 0:13:03]} 19. g3 {[%emt 0:00:23]} Ne3 {[%emt 0:02:39]} 20. R1d2 {[%emt 0:01:51]} Nf5 {[%emt 0:00:22]} 21. Rd1 {[%emt 0:00:42]} Nxh4 {[%emt 0:00:36]} 22. gxh4 {[%emt 0:00:09]} Rfd8 {[%emt 0:02:16]} 23. Rxd8+ {[%emt 0:00:09]} Rxd8 {[%emt 0:00:19]} 24. Rxd8+ {[%emt 0:00:05]} Bxd8 {[%emt 0:00:04]} 25. Kd2 {[%emt 0:00:17]} Bxh4 {[%emt 0:00:38]} 26. Ke3 {[%emt 0:00:29]} Kf8 {[%emt 0:04:38]} 27. b3 {[%emt 0:00:16]} Bf6 {[%emt 0:00:32]} 28. Ke4 {[%emt 0:00:16]} g6 {[%emt 0:00:46]} 29. Nc1 {[%emt 0:00:10]} Ke7 {[%emt 0:00:41]} 30. Nd3 {[%emt 0:00:07]} Bg7 {[%emt 0:01:50]} 31. Nc5 {[%emt 0:00:20]} b6 {[%emt 0:02:37]} 32. Nd3 {[%emt 0:00:10]} f5+ {[%emt 0:01:06]} 33. Kf3 {[%emt 0:00:10]} Kd6 {[%emt 0:00:27]} 34. c4 {[%emt 0:00:13]} c5 {[%emt 0:00:16]} 35. Ne1 {[%emt 0:00:35]} e5 {[%emt 0:00:18]} 36. fxe5+ {[%emt 0:00:07]} Kxe5 {[%emt 0:00:50]} 37. Nd3+ {[%emt 0:00:13]} Kd4 {[%emt 0:00:24]} 38. Nf4 {[%emt 0:00:07]} Kc3 {[%emt 0:00:13]} 39. Ne6 {[%emt 0:00:27]} Bd4 {[%emt 0:02:06]} 40. Kf4 {[%emt 0:00:00]} Kb2 {[%emt 0:00:38]} 41. Kg5 {[%emt 0:00:12]} Be3+ {[%emt 0:01:04]} 42. Kf6 {[%emt 0:02:37]} Bh6 43. Nf4 0-1

[Event "XIX Sants Open 2017"]
[Site "Cotxeres de Sants"]
[Date "2017.08.23"]
[Round "6"]
[White "Siegel, Rainer"]
[Black "Fernandez Benito, Carlos Pablo"]
[Result "1/2-1/2"]
[ECO "C00"]
[WhiteElo "1551"]
[BlackElo "1632"]
[Annotator "NA RC"]
[PlyCount "80"]
[EventDate "2017.??.??"]
[EventType "swiss"]
[EventCountry "ESP"]
[SourceTitle "playchess.com"]
[Source "ChessBase"]
[SourceQuality "1"]
[TimeControl "40/5400+30:1800+30"]

1. d3 {[%emt 0:00:12]} d5 {[%emt 0:00:24]} 2. Nd2 {[%emt 0:01:07]} Nf6 {[%emt 0:00:52]} 3. Ngf3 {[%emt 0:01:47]} e6 {[%emt 0:01:05]} 4. e4 {[%emt 0:00:17]} dxe4 {[%emt 0:01:49]} 5. dxe4 {[%emt 0:00:30]} Nc6 {[%emt 0:01:51]} 6. c3 {[%emt 0:01:43]} Bc5 {[%emt 0:02:23]} 7. Be2 {[%emt 0:03:30]} O-O {[%emt 0:01:17]} 8. b4 {[%emt 0:07:04]} Bd6 {[%emt 0:05:04]} 9. b5 {[%emt 0:01:42]} Ne5 {[%emt 0:01:27]} 10. Ng5 {[%emt 0:10:39]} h6 {[%emt 0:03:58]} 11. Nh3 {[%emt 0:03:28]} b6 {[%emt 0:01:58]} 12. f4 {[%emt 0:08:54]} Bb7 {[%emt 0:04:57]} 13. fxe5 {[%emt 0:04:21]} Bxe5 {[%emt 0:01:02]} 14. O-O {[%emt 0:07:11]} Bxc3 {[%emt 0:03:08]} 15. Rb1 {[%emt 0:08:47]} Qd4+ {[%emt 0:01:40]} 16. Kh1 {[%emt 0:02:11]} Rad8 {[%emt 0:00:55]} 17. Qb3 {[%emt 0:15:43]} Bxd2 {[%emt 0:01:44]} 18. Rd1 {[%emt 0:02:20]} Qc3 {[%emt 0:03:33]} 19. Bxd2 {[%emt 0:01:58]} Qxb3 {[%emt 0:01:03]} 20. Rxb3 {[%emt 0:00:59]} Bxe4 {[%emt 0:01:03]} 21. Rb2 {[%emt 0:04:15]} Rd7 {[%emt 0:03:37]} 22. Bf4 {[%emt 0:02:38]} Rxd1+ {[%emt 0:05:46]} 23. Bxd1 {[%emt 0:00:04]} c5 {[%emt 0:03:26]} 24. bxc6 {[%emt 0:00:56]} Bxc6 {[%emt 0:00:20]} 25. Rc2 {[%emt 0:00:34]} Bd5 {[%emt 0:02:59]} 26. Kg1 {[%emt 0:03:21]} g5 {[%emt 0:02:35]} 27. Bd6 {[%emt 0:00:17]} Ra8 {[%emt 0:01:20]} 28. Nf2 {[%emt 0:00:35]} Ne8 {[%emt 0:00:51]} 29. Ba3 {[%emt 0:02:00]} f5 {[%emt 0:02:29]} 30. Nd3 {[%emt 0:01:27]} Be4 {[%emt 0:00:52]} 31. Rc3 {[%emt 0:00:11]} Rd8 {[%emt 0:00:59]} 32. Nf2 {[%emt 0:00:46]} Bd5 {[%emt 0:00:55]} 33. Bb3 {[%emt 0:00:40]} Bxb3 {[%emt 0:04:09]} 34. axb3 {[%emt 0:00:06]} Kf7 {[%emt 0:01:01]} 35. Nd3 Kf6 36. Nb4 Kf7 37. h4 g4 38. Bc1 h5 39. Bg5 e5 40. Kf2 f4 1/2-1/2

[Event "XIX Sants Open 2017"]
[Site "Cotxeres de Sants"]
[Date "2017.08.23"]
[Round "6"]
[White "Lopez Oliva, Victor"]
[Black "Lopez Arjona, Emilio"]
[Result "*"]
[WhiteElo "1530"]
[BlackElo "1547"]
[Annotator "NA RC"]
[PlyCount "22"]
[EventDate "2017.??.??"]
[EventType "swiss"]
[EventCountry "ESP"]
[SourceTitle "playchess.com"]
[Source "ChessBase"]
[SourceQuality "1"]
[TimeControl "40/5400+30:1800+30"]

1. d4 Nf6 2. Nf3 g6 3. Nc3 d6 4. Bg5 Bg7 5. Qd2 h6 6. Bh4 c6 7. h3 b5 8. e3 Qc7 9. Bd3 Bb7 10. O-O a6 11. Bg3 c5 *

[Event "XIX Sants Open 2017"]
[Site "Cotxeres de Sants"]
[Date "2017.08.23"]
[Round "6"]
[White "Lopez Oliva, Victor"]
[Black "Lopez Arjona, Emilio"]
[Result "1/2-1/2"]
[ECO "B21"]
[WhiteElo "1530"]
[BlackElo "1547"]
[Annotator "NA RC"]
[PlyCount "100"]
[EventDate "2017.??.??"]
[EventType "swiss"]
[EventCountry "ESP"]
[SourceTitle "playchess.com"]
[Source "ChessBase"]
[SourceQuality "1"]
[TimeControl "40/5400+30:1800+30"]

1. e4 c5 2. d4 cxd4 3. c3 d3 4. Bxd3 e6 5. Nf3 Be7 6. O-O a6 7. Qc2 d6 8. Be3 Nf6 9. Nbd2 Nbd7 10. Nd4 O-O 11. N2f3 Nc5 12. e5 dxe5 13. Nxe5 Nxd3 14. Nxd3 Qc7 15. Nf3 b5 16. Rad1 Bb7 17. Bf4 Qc4 18. b3 Qc8 19. Nfe5 Rd8 20. c4 Be4 21. f3 Bc5+ 22. Kh1 Bxd3 23. Rxd3 Rxd3 24. Qxd3 bxc4 25. Qxc4 Nd5 26. Nd3 Bf8 27. Rc1 Qxc4 28. Rxc4 Nxf4 29. Nxf4 Rd8 30. Kg1 Rd1+ 31. Kf2 Rd2+ 32. Ke3 Rxa2 33. Rc8 g6 34. h3 Kg7 35. g3 Ra3 36. Rb8 a5 37. Rb7 Kg8 38. Ke4 Bd6 39. h4 h5 40. Rb6 Bc7 41. Rb7 Bd6 42. Rb6 Bb4 43. Rb8+ Kg7 44. Rb7 Kf8 45. Rb8+ Ke7 46. Rb7+ Kd6 47. Rxf7 Rxb3 48. Rf6 Kd7 49. Rxe6 Bd2 50. Rxg6 Re3+ 1/2-1/2

[Event "XIX Sants Open 2017"]
[Site "Cotxeres de Sants"]
[Date "2017.08.24"]
[Round "7"]
[White "Garcia Ruiz, Adrian"]
[Black "Torralba Brosa, Marc"]
[Result "1/2-1/2"]
[ECO "B35"]
[WhiteElo "1940"]
[BlackElo "1839"]
[Annotator "NA RC"]
[PlyCount "63"]
[EventDate "2017.??.??"]
[EventType "swiss"]
[EventCountry "ESP"]
[SourceTitle "playchess.com"]
[Source "ChessBase"]
[SourceQuality "1"]
[TimeControl "40/5400+30:1800+30"]

1. e4 c5 2. Nf3 g6 3. d4 cxd4 4. Nxd4 Nc6 5. Nc3 Bg7 6. Be3 Nf6 7. Bc4 O-O 8. Bb3 d6 9. f3 Bd7 10. Qd2 Na5 11. O-O-O Rb8 12. h4 b5 13. Bh6 Bxh6 14. Qxh6 e5 15. Nde2 b4 16. Nd5 Nxb3+ 17. axb3 Nxd5 18. exd5 Qc7 19. Ng3 f6 20. h5 g5 21. Ne4 Bf5 22. Rd2 Bxe4 23. fxe4 Rb6 24. Rf2 Ra6 25. Kd2 Rc8 26. Rc1 Qc5 27. Qxf6 Qd4+ 28. Ke2 Rxc2+ 29. Rxc2 Qxe4+ 30. Kd2 Qd4+ 31. Ke2 Qe4+ 32. Kd2 1/2-1/2

[Event "XIX Sants Open 2017"]
[Site "Cotxeres de Sants"]
[Date "2017.08.24"]
[Round "7"]
[White "Casset Bello, Elena"]
[Black "Petit Montes, Marc"]
[Result "1/2-1/2"]
[ECO "D12"]
[WhiteElo "1936"]
[BlackElo "1948"]
[Annotator "NA RC"]
[PlyCount "118"]
[EventDate "2017.??.??"]
[EventType "swiss"]
[EventCountry "ESP"]
[SourceTitle "playchess.com"]
[Source "ChessBase"]
[SourceQuality "1"]
[TimeControl "40/5400+30:1800+30"]

1. d4 {[%emt 0:00:00]} d5 {[%emt 0:01:20]} 2. c4 {[%emt 0:00:00]} c6 {[%emt 0:00:27]} 3. Nf3 {[%emt 0:00:07]} Nf6 {[%emt 0:00:29]} 4. e3 {[%emt 0:00:13]} Bf5 {[%emt 0:01:37]} 5. Bd3 {[%emt 0:00:35]} Bxd3 {[%emt 0:00:55]} 6. Qxd3 {[%emt 0:01:53]} e6 {[%emt 0:00:36]} 7. O-O {[%emt 0:00:27]} Bd6 {[%emt 0:02:41]} 8. Nbd2 {[%emt 0:01:14]} Nbd7 {[%emt 0:00:34]} 9. e4 {[%emt 0:02:27]} dxe4 {[%emt 0:01:20]} 10. Nxe4 {[%emt 0:00:06]} Nxe4 {[%emt 0:00:08]} 11. Qxe4 {[%emt 0:00:03]} Nf6 {[%emt 0:00:07]} 12. Qe2 {[%emt 0:01:01] LiveBook: 14 Games D12: Slav Defence: 3 Nf3 Nf6 4 e3 Bf5} O-O {[%emt 0:00:21]} 13. Bg5 {[%emt 0:01:34]} (13. Rd1 Qc7 14. Bg5 Bf4 15. Bxf6 gxf6 16. d5 Rfe8 17. dxe6 fxe6 18. g3 Bh6 19. Rd3 e5 20. Rad1 Rad8 21. Nh4 Rxd3 22. Rxd3 Rd8 23. Qg4+ Kh8 24. Rxd8+ Qxd8 25. Qe6 Bf8 26. Nf5 {1-0 (26) Mozharov,M (2540)-Bystrov,S (2280) Pardubice 2014}) 13... h6 {[%emt 0:00:45]} 14. Bh4 {[%emt 0:12:30]} Be7 {[%emt 0:07:51]} 15. Rfd1 {[%emt 0:04:44]} Re8 {[%emt 0:07:48]} 16. Rac1 $146 {[%emt 0:10:01]} Nh5 {[%emt 0:15:31]} 17. Bxe7 {[%emt 0:01:29]} Qxe7 {[%emt 0:00:45]} 18. Qe5 {[%emt 0:04:29]} Nf6 {[%emt 0:01:47]} 19. a3 {[%emt 0:12:35]} Rad8 {[%emt 0:03:33]} 20. h3 {[%emt 0:11:00]} Qd6 {[%emt 0:05:24]} 21. Kf1 {[%emt 0:11:39]} Kf8 {[%emt 0:14:30]} 22. Qxd6+ {[%emt 0:05:04]} Rxd6 {[%emt 0:00:07]} 23. Ke2 {[%emt 0:00:41]} Red8 {[%emt 0:03:10]} 24. b4 {[%emt 0:07:01]} R6d7 {[%emt 0:13:00]} 25. Ke3 {[%emt 0:01:59]} Rc7 {[%emt 0:01:09]} 26. a4 {[%emt 0:04:57]} Rdc8 {[%emt 0:00:59]} 27. a5 {[%emt 0:02:53]} b5 {[%emt 0:03:57]} 28. axb6 {[%emt 0:01:36]} axb6 {[%emt 0:00:11]} 29. Ra1 {[%emt 0:00:40]} b5 {[%emt 0:01:39]} 30. Rdc1 {[%emt 0:00:43]} Rb7 {[%emt 0:04:52]} 31. Ra6 {[%emt 0:01:14]} bxc4 {[%emt 0:00:52]} 32. Rxc4 {[%emt 0:00:01]} Nd5+ {[%emt 0:00:24]} 33. Ke4 {[%emt 0:01:02]} Nxb4 {[%emt 0:00:59]} 34. Ra4 {[%emt 0:00:29]} ({Better is} 34. Ra3 $15) 34... Nd5 {[%emt 0:00:56]} 35. Ra6 {[%emt 0:00:30]} Rbc7 {[%emt 0:03:15]} 36. Ne5 {[%emt 0:00:20]} Ne7 {[%emt 0:00:32]} 37. Rc5 {[%emt 0:00:40]} f6 {[%emt 0:01:02]} 38. Nd3 {[%emt 0:00:27]} Rb8 {[%emt 0:00:48]} 39. Rc4 {[%emt 0:00:27]} Kf7 {[%emt 0:02:29]} 40. Nb4 {[%emt 0:00:00]} Rbc8 {[%emt 0:00:55]} 41. Rc5 {[%emt 0:03:09]} Ke8 {[%emt 0:13:21]} 42. g3 {[%emt 0:02:27]} Kd7 {[%emt 0:00:26]} 43. f4 {[%emt 0:07:34]} (43. Rc1 $15) 43... Nd5 {[%emt 0:03:51]} 44. Nd3 {[%emt 0:01:10]} Rb8 {[%emt 0:00:38]} 45. g4 $2 {[%emt 0:05:05]} ({White should play} 45. Rca5 $15) 45... g6 {[%emt 0:05:21]} (45... Rb3 $17 46. f5 exf5+ 47. gxf5 Rc8 48. Raxc6 Rxc6 49. Rxd5+ Kc8) 46. h4 $2 {[%emt 0:03:08]} (46. Rc1 $17) 46... f5+ $2 {[%emt 0:03:29]} (46... Rb3 $19 {is more deadly.} 47. Rca5 f5+ 48. gxf5 gxf5+ 49. Ke5 Rxd3) 47. gxf5 {[%emt 0:00:48]} exf5+ {[%emt 0:02:49]} 48. Kf3 {[%emt 0:00:21]} Rb3 {[%emt 0:00:12]} 49. Ke2 {[%emt 0:01:41]} Rxd3 {[%emt 0:02:39]} (49... Kd6 $17 50. Rc4 Rb1) 50. Rxd5+ {[%emt 0:00:51]} cxd5 {[%emt 0:00:10]} 51. Kxd3 {[%emt 0:00:02]} Rc6 {[%emt 0:00:09]} 52. Ra7+ {[%emt 0:00:40]} Ke6 {[%emt 0:00:41]} 53. Rg7 $1 {[%emt 0:00:51]} Kf6 {[%emt 0:00:16]} 54. Rd7 $1 {[%emt 0:00:31]} Ke6 {[%emt 0:00:16]} 55. Rg7 {[%emt 0:00:02]} Kf6 {[%emt 0:00:13]} 56. Rd7 {[%emt 0:00:01]} Ke6 {[%emt 0:01:48]} 57. Rg7 $11 {[%emt 0:00:02]} Kf6 58. Rd7 Re6 59. Rxd5 Re4 1/2-1/2

[Event "XIX Sants Open 2017"]
[Site "Cotxeres de Sants"]
[Date "2017.08.24"]
[Round "7"]
[White "Serentill Tost, Eduard"]
[Black "Lopez Oliva, Victor"]
[Result "0-1"]
[ECO "B01"]
[WhiteElo "1619"]
[BlackElo "1530"]
[Annotator "NA RC"]
[PlyCount "108"]
[EventDate "2017.??.??"]
[EventType "swiss"]
[EventCountry "ESP"]
[SourceTitle "playchess.com"]
[Source "ChessBase"]
[SourceQuality "1"]
[TimeControl "40/5400+30:1800+30"]

1. e4 {[%emt 0:00:00]} d5 {[%emt 0:00:08]} 2. exd5 {[%emt 0:00:00]} Qxd5 {[%emt 0:00:06]} 3. Nc3 {[%emt 0:00:00]} Qa5 {[%emt 0:00:07]} 4. d4 {[%emt 0:00:00]} Nf6 {[%emt 0:02:19]} 5. Nf3 {[%emt 0:02:27]} Bf5 {[%emt 0:06:04]} 6. Bc4 {[%emt 0:05:44]} e6 {[%emt 0:01:21]} 7. Bd2 {[%emt 0:00:52]} c6 {[%emt 0:00:16]} 8. Ne4 {[%emt 0:00:41]} Qd8 {[%emt 0:00:24]} 9. Nxf6+ {[%emt 0:01:20]} Qxf6 {[%emt 0:00:07]} 10. c3 {[%emt 0:03:15]} h6 {[%emt 0:07:18]} 11. h3 {[%emt 0:05:59]} Nd7 {[%emt 0:04:15]} 12. Qe2 {[%emt 0:02:02]} Nb6 {[%emt 0:01:26]} 13. Bb3 {[%emt 0:02:21]} Be7 {[%emt 0:06:57]} 14. Bf4 {[%emt 0:05:00]} O-O {[%emt 0:03:11]} 15. g4 {[%emt 0:01:34]} Bxg4 {[%emt 0:02:32]} 16. hxg4 {[%emt 0:01:11]} Qxf4 {[%emt 0:00:09]} 17. Nd2 {[%emt 0:01:30]} Bg5 {[%emt 0:10:12]} 18. O-O-O {[%emt 0:01:07]} Rad8 {[%emt 0:02:10]} 19. Kb1 {[%emt 0:00:46]} Nd5 {[%emt 0:09:20]} 20. Ne4 {[%emt 0:06:00]} Nf6 {[%emt 0:01:15]} 21. Nxf6+ {[%emt 0:01:40]} Qxf6 {[%emt 0:02:01]} 22. Bc2 {[%emt 0:01:54]} g6 {[%emt 0:08:02]} 23. Rd3 {[%emt 0:03:39]} Qf4 {[%emt 0:07:12]} 24. Rdh3 {[%emt 0:01:24]} Kg7 {[%emt 0:00:56]} 25. f3 {[%emt 0:01:57]} Rh8 {[%emt 0:02:38]} 26. Qc4 {[%emt 0:06:49]} Rh7 {[%emt 0:00:53]} 27. Qb3 {[%emt 0:00:09]} b5 {[%emt 0:05:28]} 28. Qa3 {[%emt 0:02:50]} Rdh8 {[%emt 0:00:56]} 29. Qc5 {[%emt 0:02:56]} h5 {[%emt 0:00:34]} 30. Qe5+ {[%emt 0:00:55]} Qxe5 {[%emt 0:01:21]} 31. dxe5 {[%emt 0:00:02]} hxg4 {[%emt 0:00:37]} 32. Rxh7+ {[%emt 0:01:35]} Rxh7 {[%emt 0:00:07]} 33. Rxh7+ {[%emt 0:00:44]} Kxh7 {[%emt 0:00:03]} 34. fxg4 {[%emt 0:00:06]} Bf4 {[%emt 0:00:12]} 35. Be4 {[%emt 0:01:11]} c5 {[%emt 0:00:12]} 36. Bc6 {[%emt 0:01:52]} b4 {[%emt 0:00:11]} 37. cxb4 {[%emt 0:01:28]} cxb4 {[%emt 0:00:03]} 38. a3 {[%emt 0:00:36]} bxa3 {[%emt 0:00:11]} 39. bxa3 {[%emt 0:00:14]} Bxe5 {[%emt 0:00:05]} 40. Kc2 {[%emt 0:00:00]} f5 {[%emt 0:00:38]} 41. gxf5 {[%emt 0:01:17]} exf5 {[%emt 0:00:10]} 42. Kd3 {[%emt 0:00:47]} Kh6 {[%emt 0:01:13]} 43. Ke3 {[%emt 0:00:08]} g5 {[%emt 0:00:41]} 44. Bd7 {[%emt 0:00:22]} Kg6 {[%emt 0:00:13]} 45. a4 {[%emt 0:00:59]} g4 {[%emt 0:00:29]} 46. Bc8 {[%emt 0:00:33]} Kg5 {[%emt 0:00:21]} 47. Bb7 {[%emt 0:01:27]} Bf4+ {[%emt 0:01:51]} 48. Kf2 {[%emt 0:00:29]} Bc1 {[%emt 0:00:50]} 49. Kg2 {[%emt 0:00:55]} Kh4 {[%emt 0:01:17]} 50. Bc6 {[%emt 0:00:34]} f4 {[%emt 0:01:24]} 51. Bd5 {[%emt 0:01:33]} Be3 {[%emt 0:01:08]} 52. Bc6 {[%emt 0:00:18]} f3+ {[%emt 0:00:31]} 53. Kf1 {[%emt 0:00:02]} Kg3 {[%emt 0:00:43]} 54. Bd7 {[%emt 0:00:47]} Kf4 0-1

[Event "XIX Sants Open 2017"]
[Site "Cotxeres de Sants"]
[Date "2017.08.24"]
[Round "7"]
[White "Abdelkader Garstka, Adam"]
[Black "Aparicio Escudero, Hector F"]
[Result "1-0"]
[ECO "B00"]
[WhiteElo "1612"]
[BlackElo "1641"]
[Annotator "NA RC"]
[PlyCount "71"]
[EventDate "2017.??.??"]
[EventType "swiss"]
[EventCountry "ESP"]
[SourceTitle "playchess.com"]
[Source "ChessBase"]
[SourceQuality "1"]
[TimeControl "40/5400+30:1800+30"]

1. e4 {[%emt 0:00:00]} Nc6 {[%emt 0:00:11]} 2. Nf3 {[%emt 0:00:00]} d6 {[%emt 0:00:07]} 3. Nc3 {[%emt 0:00:36]} Nf6 {[%emt 0:00:18]} 4. Bb5 {[%emt 0:00:48]} Bd7 {[%emt 0:00:27]} 5. O-O {[%emt 0:01:02]} e5 {[%emt 0:00:59]} 6. h3 {[%emt 0:01:55]} Be7 {[%emt 0:00:42]} 7. d3 {[%emt 0:01:14]} O-O {[%emt 0:00:48]} 8. Be3 {[%emt 0:01:36]} a6 {[%emt 0:00:44]} 9. Ba4 {[%emt 0:01:36]} b5 {[%emt 0:01:46]} 10. Bb3 {[%emt 0:00:48]} Na5 {[%emt 0:00:59]} 11. Nd2 {[%emt 0:02:12]} Nxb3 {[%emt 0:00:50]} 12. axb3 {[%emt 0:01:46]} c5 {[%emt 0:06:08]} 13. f4 {[%emt 0:01:57]} Bc6 {[%emt 0:02:32]} 14. fxe5 {[%emt 0:05:30]} dxe5 {[%emt 0:00:58]} 15. Qe1 {[%emt 0:09:35]} Bb7 {[%emt 0:04:52]} 16. Rf5 {[%emt 0:13:50]} Nd7 {[%emt 0:10:23]} 17. Qg3 {[%emt 0:08:24]} f6 {[%emt 0:04:14]} 18. Nf3 {[%emt 0:06:30]} c4 {[%emt 0:03:34]} 19. bxc4 {[%emt 0:04:54]} bxc4 {[%emt 0:00:31]} 20. d4 {[%emt 0:03:42]} Qb6 {[%emt 0:06:46]} 21. Na4 {[%emt 0:06:03]} Qb5 {[%emt 0:01:11]} 22. dxe5 {[%emt 0:04:42]} Bxe4 {[%emt 0:01:04]} 23. exf6 {[%emt 0:00:29]} Bxf6 {[%emt 0:02:05]} 24. Rxb5 {[%emt 0:00:57]} axb5 {[%emt 0:00:33]} 25. Rd1 {[%emt 0:01:16]} Rxa4 {[%emt 0:02:02]} 26. Rxd7 {[%emt 0:01:02]} Ra1+ {[%emt 0:01:20]} 27. Kh2 {[%emt 0:00:40]} Bxc2 {[%emt 0:04:37]} 28. Bd4 {[%emt 0:00:52]} Bxd4 {[%emt 0:01:59]} 29. Nxd4 {[%emt 0:00:21]} Bg6 {[%emt 0:00:55]} 30. Qe5 {[%emt 0:02:35]} Rf7 {[%emt 0:02:04]} 31. Rxf7 {[%emt 0:01:52]} Kxf7 {[%emt 0:01:06]} 32. Qe6+ {[%emt 0:01:12]} Kf8 {[%emt 0:00:24]} 33. Nxb5 {[%emt 0:00:34]} Rb1 {[%emt 0:03:02]} 34. Qxc4 {[%emt 0:01:55]} Rxb2 {[%emt 0:02:10]} 35. Qf4+ {[%emt 0:01:17]} Bf7 {[%emt 0:01:48]} 36. Nd6 {[%emt 0:00:18]} 1-0

[Event "XIX Sants Open 2017"]
[Site "Cotxeres de Sants"]
[Date "2017.08.24"]
[Round "7"]
[White "Segura Ruiz, Carlos"]
[Black "Lopez Arjona, Emilio"]
[Result "1-0"]
[ECO "A01"]
[WhiteElo "1414"]
[BlackElo "1547"]
[Annotator "NA RC"]
[PlyCount "87"]
[EventDate "2017.??.??"]
[EventType "swiss"]
[EventCountry "ESP"]
[SourceTitle "playchess.com"]
[Source "ChessBase"]
[SourceQuality "1"]
[TimeControl "40/5400+30:1800+30"]

1. b3 Nf6 2. Bb2 c5 3. g3 Nc6 4. Bg2 d5 5. c4 d4 6. d3 e5 7. Nd2 Bd6 8. Ngf3 O-O 9. Ng5 Qc7 10. Nge4 Nxe4 11. Nxe4 Be7 12. O-O f5 13. Nd2 Bd7 14. a3 Rab8 15. Qc2 Bd6 16. Rae1 Rbe8 17. e4 f4 18. Nf3 Be7 19. Bc1 g5 20. Kh1 Kh8 21. Ng1 Rg8 22. f3 fxg3 23. hxg3 Rg6 24. Bh3 Rh6 25. Kg2 Rf8 26. Rf2 Qc8 27. g4 Nd8 28. Ne2 Rg6 29. Rh1 Kg7 30. Ng3 h6 31. Nf5+ Bxf5 32. gxf5 Rgf6 33. Bg4 Rh8 34. Kg3 Nf7 35. Rfh2 Qc6 36. Bd2 Bd8 37. Qc1 Qe8 38. Bh5 Qf8 39. Bxf7 Rxf7 40. Kg4 Kf6 41. Bxg5+ Kg7 42. Rxh6 Rxf5 43. exf5 Kf7 44. Rxh8 1-0